bitfinex/quotes_ETHUSD_20220123
["timestamp","ask_amount","ask_price","bid_price","bid_amount"]
[1642947119180,0.111,2482.0,2481.8,1.16928458]
[1642947120881,0.04999999,2482.5,2481.8,1.16928458]
[1642947121082,0.13819997,2482.8,2481.8,1.16928458]
[1642947121486,0.13819997,2482.8,2482.3,1.25544385]
[1642947121885,1.54252453,2482.6,2481.8,0.01]
[1642947122085,0.13819997,2482.8,2481.8,0.01]
[1642947122930,0.13819997,2482.8,2482.1,1.18262939]
[1642947123133,1.24776556,2482.7,2482.1,1.18262939]
[1642947123537,0.33909997,2482.8,2481.8,0.01]
[1642947123733,0.02826,2482.7,2481.8,0.01]
[1642947124530,1.37749236,2482.5,2481.8,0.01]
[1642947124733,1.30377005,2482.1,2481.8,0.01]
[1642947125332,7.0162,2482.0,2481.8,0.01]
[1642947126392,1.30377005,2482.1,2481.8,0.01]
[1642947126597,5.1246,2482.4,2481.8,0.01]
[1642947126993,5.1246,2482.4,2482.1,1.37235222]
[1642947127293,5.1246,2482.4,2481.8,0.01]
[1642947127494,1.39583153,2482.2,2481.8,0.01]
[1642947127699,5.1246,2482.4,2481.8,0.01]
[1642947128096,5.1246,2482.4,2481.9,1.20127511]
[1642947128299,5.1246,2482.4,2481.8,0.01]
[1642947128498,4.43394438,2482.3,2481.8,0.01]
[1642947128703,0.01881673,2482.1,2481.8,0.01]
[1642947128898,0.02826,2482.0,2481.8,0.01]
[1642947129497,1.49219891,2480.9,2480.7,0.01]
[1642947130134,5.0719,2480.8,2480.7,0.01]
[1642947135389,6.18702404,2480.8,2480.7,0.01]
[1642947135591,6.38792404,2480.8,2480.7,0.01]
[1642947135789,6.18702404,2480.8,2480.7,0.01]
[1642947137635,5.0719,2480.8,2480.7,0.01]
[1642947138235,5.0719,2480.8,2480.7,0.02]
[1642947138635,6.45552746,2480.8,2480.7,0.02]
[1642947139140,5.0719,2480.8,2480.7,0.02]
[1642947139938,5.2728,2480.8,2480.7,0.02]
[1642947140139,6.70508753,2480.8,2480.7,0.02]
[1642947140536,6.70508753,2480.8,2480.0,0.0634]
[1642947140738,6.9905,2480.7,2480.0,0.0634]
[1642947140940,6.9905,2480.7,2480.1,3.42817972]
[1642947141141,1.32365601,2480.4,2480.1,3.42817972]
[1642947141794,1.32365601,2480.4,2480.0,0.0634]
[1642947142190,6.9905,2480.7,2480.4,2.33310673]
[1642947142396,5.2728,2480.8,2480.4,2.33310673]
[1642947142590,1.15254887,2480.7,2480.4,2.33310673]
[1642947144194,1.15254887,2480.7,2480.4,2.34310673]
[1642947145930,6.8132,2481.2,2480.5,3.48590104]
[1642947146135,5.0567,2481.1,2480.6,3.48590104]
[1642947146335,2.05369671,2481.5,2480.5,3.67908077]
[1642947146336,1.0,2481.5,2480.5,3.67908077]
[1642947146538,5.3604,2481.4,2481.3,1.12111196]
[1642947146939,5.3604,2481.4,2480.4,2.34310673]
[1642947147140,5.57345655,2481.4,2480.4,2.34310673]
[1642947147536,5.37255655,2481.4,2480.4,2.34310673]
[1642947148035,5.37255655,2481.4,2480.8,1.48904774]
[1642947148036,1.53903398,2481.2,2480.8,1.48904774]
[1642947148435,1.53903398,2481.2,2480.5,1.3640987]
[1642947148637,1.53903398,2481.2,2480.4,2.34310673]
[1642947149294,5.3604,2481.4,2480.4,2.34310673]
[1642947150294,5.3604,2481.4,2481.3,0.94178962]
[1642947150693,7.0156,2481.7,2481.3,0.94178962]
[1642947150694,29.99,2481.8,2481.3,0.94178962]
[1642947154540,29.99,2481.8,2481.7,1.5462304]
[1642947154744,29.99,2481.8,2481.7,2.88745397]
[1642947154938,29.94,2481.8,2481.7,1.34122357]
[1642947156137,28.65877643,2481.7,2481.5,1.45750285]
[1642947157191,1.3553068,2481.5,2480.6,3.8776]
[1642947157403,1.3553068,2481.5,2480.5,1.2365]
[1642947157404,0.07132391,2481.4,2480.5,1.2365]
[1642947157594,5.4523,2481.4,2480.4,2.34310673]
[1642947158193,5.4523,2481.4,2480.9,0.94178962]
[1642947159397,28.65877643,2481.7,2481.0,0.18086]
[1642947159598,28.65877643,2481.7,2480.9,0.94178962]
[1642947160037,28.65877643,2481.7,2481.0,0.18086]
[1642947160238,28.65877643,2481.7,2480.9,0.94178962]
[1642947160435,28.65877643,2481.7,2481.4,1.09000287]
[1642947160636,26.26117643,2481.7,2481.4,1.09000287]
[1642947161237,27.76280149,2481.7,2480.9,0.94178962]
[1642947161437,27.76280149,2481.7,2480.9,1.12264962]
[1642947161637,27.76280149,2481.7,2480.9,0.94178962]
[1642947161836,27.76280149,2481.7,2481.0,0.18086]
[1642947162038,26.26117643,2481.7,2480.9,0.94178962]
[1642947162235,26.26117643,2481.7,2481.2,1.37585781]
[1642947163037,27.4417312,2481.7,2481.2,1.37585781]
[1642947163239,27.4417312,2481.7,2481.2,1.32585781]
[1642947164288,26.26117643,2481.7,2481.2,1.32585781]
[1642947165294,27.36142269,2481.7,2481.2,1.32585781]
[1642947165691,26.26117643,2481.7,2481.2,1.32585781]
[1642947165993,26.26117643,2481.7,2480.5,1.2031]
[1642947166791,26.26117643,2481.7,2481.0,1.35445234]
[1642947166993,26.26117643,2481.7,2481.2,0.94178962]
[1642947167192,26.26117643,2481.7,2480.5,1.21526184]
[1642947167844,26.04646736,2481.7,2480.5,1.21526184]
[1642947168040,26.04646736,2481.7,2480.7,1.50219492]
[1642947168241,26.04646736,2481.7,2480.9,0.94178962]
[1642947168242,1.45653188,2481.4,2480.9,0.94178962]
[1642947168442,26.04646736,2481.7,2480.9,0.94178962]
[1642947168645,26.04646736,2481.7,2480.7,1.50219492]
[1642947169144,26.04646736,2481.7,2480.8,0.18086]
[1642947169344,26.04646736,2481.7,2480.7,1.50219492]
[1642947170848,1.35080827,2481.4,2480.9,0.94178962]
[1642947171050,26.04646736,2481.7,2480.9,0.94178962]
[1642947171294,26.03573147,2481.7,2480.9,0.94178962]
[1642947171993,26.03573147,2481.7,2481.1,1.50294759]
[1642947173097,26.03573147,2481.7,2481.2,0.18086]
[1642947173301,26.03573147,2481.7,2481.3,0.0126853]
[1642947173496,26.03573147,2481.7,2481.4,0.18086]
[1642947173697,11.63443147,2481.7,2481.5,1.12052006]
[1642947174501,27.17413147,2481.8,2481.6,5.05]
[1642947174898,27.17413147,2481.8,2481.5,24.47052006]
[1642947175341,19.10845147,2481.8,2481.5,24.47052006]
[1642947175544,19.10845147,2481.8,2481.7,3.9]
[1642947175946,19.10845147,2481.8,2481.7,4.08086]
[1642947176144,0.13819997,2482.8,2481.9,23.44635485]
[1642947176346,5.1365,2483.3,2482.4,0.01244582]
[1642947176944,0.2009,2483.9,2482.4,0.01244582]
[1642947177144,1.33767183,2483.6,2483.0,1.26289478]
[1642947177343,0.2009,2483.9,2483.0,1.26289478]
[1642947177745,12.0935,2484.2,2483.0,24.61289478]
[1642947178246,1.49663642,2484.0,2483.1,0.0492899]
[1642947178444,1.49663642,2484.0,2483.0,24.61289478]
[1642947178643,5.3782,2484.2,2483.4,1.49438629]
[1642947179094,5.3782,2484.2,2483.0,0.01275789]
[1642947179296,5.3782,2484.2,2482.6,0.18086]
[1642947179496,5.3782,2484.2,2482.8,0.18086]
[1642947180101,5.3782,2484.2,2482.9,23.35]
[1642947180302,5.3782,2484.2,2483.7,1.30075647]
[1642947180504,5.39075862,2484.2,2482.6,4.82794276]
[1642947180703,5.39075862,2484.2,2482.5,3.74909997]
[1642947180907,1.50236168,2483.9,2482.6,4.00676723]
[1642947181102,5.39075862,2484.2,2482.7,0.18086]
[1642947181503,5.39075862,2484.2,2482.7,23.53086]
[1642947181702,5.39075862,2484.2,2483.6,0.01886463]
[1642947181903,5.39075862,2484.2,2483.5,1.20569215]
[1642947182103,1.16288532,2483.9,2482.8,4.26620718]
[1642947182303,5.39075862,2484.2,2482.7,0.18086]
[1642947183141,5.39075862,2484.2,2483.5,1.28098606]
[1642947183744,5.3782,2484.2,2483.5,1.28098606]
[1642947183945,5.3782,2484.2,2483.5,2.43418606]
[1642947184544,5.3782,2484.2,2483.6,23.35]
[1642947185243,5.3782,2484.2,2483.6,0.18086]
[1642947186315,5.3782,2484.2,2483.6,23.53086]
[1642947186516,6.5673,2484.7,2483.6,23.53086]
[1642947186517,6.5673,2484.7,2483.8,0.04215622]
[1642947186719,6.66906173,2484.6,2483.9,0.18086]
[1642947187516,6.66906173,2484.6,2484.2,1.52015967]
[1642947187719,5.2219,2484.6,2484.2,1.52015967]
[1642947190152,0.18819996,2485.4,2485.0,1.32674289]
[1642947190348,5.3299,2485.4,2485.0,1.32674289]
[1642947190745,5.3299,2485.4,2484.9,0.3112]
[1642947191145,5.3299,2485.4,2484.3,1.35046]
[1642947191347,5.3299,2485.4,2484.3,0.18086]
[1642947191348,1.52978323,2484.9,2484.3,0.18086]
[1642947192146,1.52978323,2484.9,2484.5,1.52720636]
[1642947192748,5.3299,2485.4,2484.6,0.18086]
[1642947192947,5.3299,2485.4,2483.3,0.34928157]
[1642947192948,7.65,2485.3,2483.3,0.34928157]
[1642947193251,7.65,2485.3,2482.9,0.161266]
[1642947193252,0.0128039,2484.1,2482.9,0.161266]
[1642947193650,1.09918428,2483.9,2482.9,0.161266]
[1642947193891,0.1608,2484.0,2482.3,0.01258276]
[1642947194095,0.1608,2484.0,2483.1,1.41980863]
[1642947194493,3.55127082,2484.6,2483.1,1.41980863]
[1642947194692,2.30644042,2484.8,2483.1,1.42139808]
[1642947194693,0.1608,2484.5,2483.1,1.42139808]
[1642947194894,0.1608,2484.7,2483.2,3.8719]
[1642947195093,0.1608,2484.7,2484.3,0.1]
[1642947195295,0.1608,2484.7,2484.4,1.16384612]
[1642947195296,6.0345,2484.7,2484.4,1.16384612]
[1642947195495,0.1608,2484.7,2484.4,1.16384612]
[1642947195693,6.3188,2485.1,2484.4,1.16384612]
[1642947195897,0.1608,2485.1,2484.4,1.16384612]
[1642947196194,2.28407516,2485.0,2484.4,1.16384612]
[1642947196400,2.28407516,2485.0,2484.7,0.94178962]
[1642947196602,2.28407516,2485.0,2484.8,1.22050704]
[1642947197549,6.3902,2485.3,2484.8,1.22050704]
[1642947197737,6.3902,2485.3,2484.0,0.00158943]
[1642947197738,6.3902,2485.3,2485.2,1.19701918]
[1642947197938,5.3299,2485.4,2485.2,1.19701918]
[1642947198138,5.3299,2485.4,2484.1,0.00158941]
[1642947198139,3.77205637,2485.3,2484.1,0.00158941]
[1642947198340,0.00772485,2485.2,2484.1,0.00158941]
[1642947198538,0.3617,2485.1,2484.1,0.00158941]
[1642947198740,0.0126025,2484.5,2484.1,0.00158941]
[1642947198939,0.1608,2484.4,2484.1,0.00158941]
[1642947199146,1.16793544,2484.3,2484.1,0.00158941]
[1642947199638,0.1608,2484.4,2484.1,0.00158941]
[1642947199838,0.1608,2484.4,2483.9,1.17568916]
[1642947200045,0.1608,2484.4,2483.9,1.17727856]
[1642947200242,0.1608,2484.4,2483.9,0.0015894]
[1642947200649,0.1608,2484.4,2483.9,1.04337902]
[1642947200848,6.2011,2485.0,2483.0,0.161]
[1642947200849,0.01298227,2484.2,2483.0,0.161]
[1642947201050,0.01402206,2483.5,2483.0,0.161]
[1642947201291,0.01213466,2483.6,2482.3,0.02]
[1642947201292,0.01538573,2483.3,2482.3,0.02]
[1642947201499,0.3617,2483.4,2482.3,0.02]
[1642947201500,0.1608,2483.2,2482.3,0.02]
[1642947201698,0.2009,2483.2,2482.3,0.02]
[1642947201896,1.59998118,2483.1,2482.3,0.02]
[1642947202296,7.90248118,2483.1,2482.3,0.02]
[1642947203097,3.95718796,2483.0,2482.3,0.02]
[1642947203698,3.9326,2483.0,2482.3,0.02]
[1642947205342,4.0934,2483.0,2482.3,0.02]
[1642947205745,0.03114508,2482.9,2482.3,0.02]
[1642947206045,0.1608,2482.8,2482.3,0.02]
[1642947206245,3.9326,2483.0,2482.3,0.02]
[1642947206444,0.1608,2482.9,2482.3,0.02]
[1642947206645,7.65,2482.8,2482.3,0.02]
[1642947206850,1.19530486,2482.7,2482.3,0.02]
[1642947207047,3.96240538,2482.7,2481.1,0.151]
[1642947207245,1.0,2482.6,2481.1,0.151]
[1642947207454,0.01211419,2482.2,2481.1,0.151]
[1642947207648,0.3617,2482.1,2481.1,0.151]
[1642947208249,1.10017081,2481.5,2481.1,0.151]
[1642947208450,0.17291419,2482.2,2481.1,0.151]
[1642947208647,0.1608,2482.4,2481.1,0.151]
[1642947208893,0.1608,2482.4,2480.9,1.41548139]
[1642947209293,0.1608,2482.4,2481.5,1.22986956]
[1642947209499,1.34357228,2482.1,2481.5,1.22986956]
[1642947209694,1.34357228,2482.1,2480.9,0.02]
[1642947209893,1.45046903,2481.7,2481.1,0.01]
[1642947210099,9.9089,2482.0,2481.1,0.01]
[1642947210507,3.9043,2482.0,2481.1,0.01]
[1642947210699,3.9043,2482.0,2481.0,0.13407357]
[1642947210902,7.5531,2482.6,2481.0,0.121]
[1642947211101,8.88339611,2482.6,2481.0,0.9506]
[1642947211300,8.88339611,2482.6,2481.0,1.2506]
[1642947211502,8.88339611,2482.6,2481.9,1.1695975]
[1642947211702,0.161,2482.5,2481.9,1.1695975]
[1642947211902,7.71079611,2482.6,2481.9,1.1695975]
[1642947212106,11.45199611,2482.6,2481.9,1.1695975]
[1642947212551,10.1217,2482.6,2481.9,1.1695975]
[1642947212942,10.1217,2482.6,2482.0,0.01823658]
[1642947213339,10.1217,2482.6,2481.4,1.01254273]
[1642947213540,1.44630546,2482.8,2481.4,0.61254273]
[1642947213741,4.0557,2483.0,2481.4,0.61254273]
[1642947213942,0.161,2482.9,2481.4,0.31254273]
[1642947214343,0.161,2482.9,2482.3,1.28810485]
[1642947214748,1.37348831,2482.8,2482.3,1.28810485]
[1642947215148,0.161,2482.9,2482.3,1.28810485]
[1642947215547,0.161,2482.9,2481.4,1.17354273]
[1642947215744,0.161,2482.9,2481.4,1.77354273]
[1642947216144,0.161,2482.9,2481.5,23.35]
[1642947216391,1.17066783,2482.7,2481.7,0.03497731]
[1642947216592,0.161,2482.9,2481.8,1.3800885]
[1642947216792,0.01288907,2482.8,2481.6,3.7068]
[1642947216993,0.161,2482.7,2481.6,3.7068]
[1642947217592,1.25114489,2482.3,2481.6,3.7068]
[1642947218293,1.25114489,2482.3,2481.6,5.13967137]
[1642947218695,0.161,2482.7,2481.0,0.161]
[1642947218696,1.52832144,2481.9,2481.0,0.161]
[1642947218896,0.161,2482.7,2481.0,0.161]
[1642947218897,0.01016726,2481.8,2481.0,0.161]
[1642947219096,0.01016726,2481.8,2480.9,0.02]
[1642947219294,0.161,2482.1,2480.9,0.02]
[1642947220237,1.38187285,2481.2,2480.9,0.02]
[1642947220443,10.83491391,2482.1,2480.9,0.02]
[1642947220636,7.5007,2482.1,2480.9,0.02]
[1642947220838,7.5007,2482.1,2481.0,1.156504]
[1642947221038,6.3584,2482.1,2481.0,1.156504]
[1642947221238,6.3584,2482.1,2480.9,0.02]
[1642947221641,1.17720034,2481.5,2480.9,0.02]
[1642947222042,11.54410272,2482.1,2480.9,0.02]
[1642947222043,7.5776,2482.1,2480.9,0.02]
[1642947222244,7.5776,2482.1,2481.1,1.37074843]
[1642947222445,6.3584,2482.1,2481.1,1.37074843]
[1642947223246,1.22034235,2481.6,2480.9,0.02]
[1642947223448,0.1612,2481.5,2480.9,0.02]
[1642947223648,0.1512,2481.5,2480.9,0.02]
[1642947224291,1.50974918,2481.2,2480.9,0.02]
[1642947224491,0.1612,2482.0,2480.9,0.02]
[1642947224893,0.2009,2481.9,2481.0,0.01285612]
[1642947225200,0.2009,2481.9,2480.9,0.02]
[1642947225201,0.161,2481.8,2480.9,0.02]
[1642947225393,0.0129952,2481.6,2480.9,0.02]
[1642947225593,1.38207531,2481.5,2480.9,0.02]
[1642947225794,7.91531002,2481.4,2480.9,0.02]
[1642947225992,0.1612,2481.3,2480.9,0.02]
[1642947226193,0.2009,2481.2,2480.9,0.02]
[1642947226395,1.67386883,2481.1,2480.9,0.02]
[1642947226594,1.67386883,2481.1,2480.9,0.03]
[1642947227847,1.51266883,2481.1,2480.9,0.03]
[1642947228441,0.1612,2481.3,2480.9,0.03]
[1642947229244,0.1612,2481.3,2480.9,0.04]
[1642947229644,3.8112,2481.4,2480.9,0.04]
[1642947230246,3.8112,2481.4,2480.9,1.41673392]
[1642947230650,5.25558584,2481.4,2480.9,1.41673392]
[1642947232494,1.14667411,2481.0,2480.9,0.04]
[1642947232697,3.84667411,2481.0,2480.9,0.04]
[1642947232898,3.84667411,2481.0,2480.4,0.03]
[1642947233102,1.25944979,2480.5,2480.4,0.03]
[1642947234196,1.25944979,2480.5,2480.2,0.02]
[1642947235054,1.25944979,2480.5,2480.2,0.0001]
[1642947235639,3.7658,2480.4,2480.2,0.0001]
[1642947239989,3.7158,2480.4,2480.2,0.0001]
[1642947249706,6.4847,2480.9,2480.2,0.0001]
[1642947249907,6.4847,2480.9,2480.3,0.05941874]
[1642947250138,6.4847,2480.9,2480.2,0.0001]
[1642947250742,7.95101124,2480.9,2480.5,1.09009409]
[1642947250942,1.46631124,2480.9,2480.5,1.09009409]
[1642947254189,0.1612,2481.1,2480.5,1.09009409]
[1642947254393,10.4211,2481.2,2480.5,1.09009409]
[1642947254590,10.2599,2481.2,2480.5,1.09009409]
[1642947255391,1.40156128,2481.1,2480.9,1.347366]
[1642947256793,3.7566,2481.2,2480.9,1.347366]
[1642947257393,0.59871789,2481.3,2480.9,1.347366]
[1642947257642,1.22590682,2480.9,2480.2,4.62669349]
[1642947257842,0.59871789,2481.3,2480.2,0.01243518]
[1642947259041,1.28281289,2480.9,2480.7,1.36591979]
[1642947259242,1.28281289,2480.9,2480.7,1.26591979]
[1642947259542,0.59871789,2481.3,2480.7,1.26591979]
[1642947260443,1.35230037,2481.1,2480.7,1.26591979]
[1642947260842,0.59871789,2481.3,2480.7,1.26591979]
[1642947262104,0.59871789,2481.3,2481.2,1.45552434]
[1642947262304,2.07623474,2481.3,2480.5,4.46825309]
[1642947262506,2.07623474,2481.3,2480.4,0.1612]
[1642947262706,2.07623474,2481.3,2480.3,5.30191798]
[1642947263206,0.59871789,2481.3,2480.3,5.30191798]
[1642947263404,0.59871789,2481.3,2481.2,1.3953701]
[1642947264212,1.34706851,2481.5,2480.3,4.70191798]
[1642947264408,0.1612,2481.6,2480.4,3.42829083]
[1642947264606,0.1612,2481.6,2480.2,1.21593518]
[1642947264805,0.1612,2481.6,2480.3,4.00849341]
[1642947265039,0.1612,2481.8,2480.5,0.03675068]
[1642947265241,0.74221423,2482.0,2481.2,1.53186535]
[1642947265442,0.90321423,2482.0,2481.2,1.53186535]
[1642947265638,1.27220334,2481.9,2481.2,1.53186535]
[1642947266038,1.27220334,2481.9,2480.7,4.07320508]
[1642947266239,1.22236699,2481.0,2480.7,4.01356266]
[1642947266443,1.22236699,2481.0,2480.3,0.4612]
[1642947266641,0.1612,2481.9,2480.3,0.7612]
[1642947266845,0.1612,2481.9,2480.4,8.14230983]
[1642947267040,0.1612,2481.9,2481.1,1.39371465]
[1642947267841,1.36290065,2481.4,2481.1,1.39371465]
[1642947268041,1.36290065,2481.4,2480.8,1.27523967]
[1642947268343,1.36290065,2481.4,2480.0,1.10141185]
[1642947268541,1.36290065,2481.4,2480.1,23.35]
[1642947268794,1.36290065,2481.4,2480.3,0.05008976]
[1642947268995,1.36290065,2481.4,2480.5,0.03011663]
[1642947269294,4.48729597,2482.0,2480.6,3.42802703]
[1642947269502,4.48729597,2482.0,2480.7,0.01253002]
[1642947269695,4.48729597,2482.0,2480.6,0.8024]
[1642947269896,4.48729597,2482.0,2480.6,23.8524]
[1642947270195,1.48701679,2481.5,2480.6,23.8819]
[1642947270403,0.91541653,2482.0,2481.6,1.53650333]
[1642947270601,3.8627,2482.1,2481.6,1.53650333]
[1642947270798,0.161,2482.3,2481.6,1.53650333]
[1642947271401,0.161,2482.3,2482.0,1.37114917]
[1642947271602,1.15697253,2482.4,2482.0,1.37114917]
[1642947275556,9.6428,2482.7,2482.0,1.37114917]
[1642947275757,9.6428,2482.7,2482.6,1.29414048]
[1642947275954,0.161,2482.9,2482.5,0.7604]
[1642947276161,0.161,2483.4,2482.5,0.7604]
[1642947276602,1.11717166,2483.3,2482.5,0.7604]
[1642947276802,0.161,2483.2,2482.5,0.7604]
[1642947277001,3.73287944,2483.2,2481.8,0.161]
[1642947277209,3.73287944,2483.2,2481.7,1.1761]
[1642947277506,2.28589165,2483.1,2481.7,1.1761]
[1642947277708,0.01280353,2482.9,2481.7,1.1761]
[1642947277902,0.01280353,2482.9,2481.6,3.6733]
[1642947277903,0.161,2482.8,2481.6,3.6733]
[1642947278105,0.161,2482.8,2480.9,0.161]
[1642947278106,1.53584468,2482.7,2480.9,0.161]
[1642947278305,1.53584468,2482.7,2480.5,2.054063]
[1642947278306,1.46822518,2480.9,2480.7,3.8845]
[1642947278505,0.1612,2481.5,2480.7,3.8845]
[1642947278703,0.1612,2481.6,2480.7,3.8845]
[1642947279104,0.1612,2481.6,2481.2,1.46442064]
[1642947279303,0.161,2482.1,2481.2,1.46442064]
[1642947279505,1.18401848,2481.4,2481.2,1.46442064]
[1642947280442,0.161,2482.1,2481.2,1.46442064]
[1642947280640,0.161,2482.1,2481.2,1.36442064]
[1642947280841,0.161,2482.1,2480.7,3.8845]
[1642947281447,1.42840087,2481.3,2480.7,3.8845]
[1642947281646,1.42840087,2481.3,2480.5,1.0456]
[1642947281849,0.01341876,2481.2,2480.5,0.7956]
[1642947282147,1.42840087,2481.3,2481.0,1.29648973]
[1642947282945,1.3968,2482.1,2481.0,1.29648973]
[1642947283345,1.3968,2482.1,2481.1,0.01201006]
[1642947283547,0.01215941,2481.7,2480.5,0.7956]
[1642947283792,0.1612,2481.6,2480.5,0.7956]
[1642947284192,1.50771019,2481.0,2480.5,0.7956]
[1642947284391,0.1612,2481.6,2481.0,1.31411738]
[1642947285193,0.1612,2482.0,2481.0,1.31411738]
[1642947285398,1.11988877,2481.3,2481.0,1.31411738]
[1642947285598,1.11988877,2481.3,2480.5,0.7956]
[1642947286197,0.1612,2481.8,2480.5,0.7956]
[1642947286798,0.1612,2481.8,2481.1,1.51691757]
[1642947287099,0.1612,2481.8,2480.5,0.7956]
[1642947287398,0.1612,2481.8,2480.3,0.461]
[1642947287652,0.1612,2481.8,2480.4,3.42795323]
[1642947287849,0.1612,2481.8,2480.5,0.1612]
[1642947288149,0.1612,2481.8,2480.8,1.37260557]
[1642947288352,1.25036892,2481.1,2480.8,1.37260557]
[1642947289149,6.6493,2481.8,2480.8,1.37260557]
[1642947289952,6.6493,2481.8,2481.2,1.23061374]
[1642947290153,1.1320359,2481.4,2481.2,1.23061374]
[1642947290351,6.6493,2481.8,2481.2,1.23061374]
[1642947290751,6.6493,2481.8,2480.3,0.50647178]
[1642947290954,6.6493,2481.8,2480.4,3.42800466]
[1642947291393,1.35127286,2481.2,2480.4,3.42800466]
[1642947291694,6.6493,2481.8,2481.1,1.53894381]
[1642947291894,6.6493,2481.8,2480.5,0.1612]
[1642947292094,6.6493,2481.8,2480.3,1.1828]
[1642947292293,6.6493,2481.8,2480.4,3.58935242]
[1642947292495,6.6493,2481.8,2480.5,3.42815242]
[1642947292697,1.43740591,2481.2,2480.5,3.42815242]
[1642947292895,1.43740591,2481.2,2480.4,0.1612]
[1642947292896,6.6493,2481.8,2480.6,1.40517024]
[1642947293396,0.1612,2482.0,2480.7,3.59721343]
[1642947293594,6.6095,2482.2,2480.7,3.58909576]
[1642947293794,6.6095,2482.2,2480.8,3.42789576]
[1642947293993,1.26321758,2481.7,2480.8,4.92140297]
[1642947294195,6.6095,2482.2,2480.7,0.1612]
[1642947294394,6.6095,2482.2,2480.8,3.42783876]
[1642947294593,6.6095,2482.2,2480.9,4.64697572]
[1642947294793,6.6095,2482.2,2480.7,0.1612]
[1642947295043,0.01294768,2482.1,2480.7,0.1112]
[1642947295250,1.55756977,2481.5,2480.8,3.42783626]
[1642947295452,1.55756977,2481.5,2480.7,0.1112]
[1642947295649,0.161,2482.0,2480.7,0.1112]
[1642947295850,0.161,2482.0,2480.6,4.53784729]
[1642947296050,0.161,2482.0,2480.6,0.1612]
[1642947296451,0.161,2482.0,2480.5,0.1612]
[1642947296652,0.161,2482.0,2480.6,3.42807735]
[1642947296653,1.3161735,2482.0,2480.6,3.42807735]
[1642947296856,1.3161735,2482.0,2481.5,1.43781979]
[1642947297255,1.1776529,2481.6,2480.7,0.1612]
[1642947297457,0.17358213,2482.0,2480.6,0.1612]
[1642947297856,0.17358213,2482.0,2480.7,3.42798178]
[1642947298053,0.17358213,2482.0,2480.8,4.4326907]
[1642947298255,0.17358213,2482.0,2481.6,1.37294185]
[1642947298455,1.59961442,2482.0,2481.6,1.37294185]
[1642947298656,6.4483,2482.2,2481.6,1.37294185]
[1642947298893,0.77358538,2482.5,2481.6,1.37294185]
[1642947299093,0.61258538,2482.5,2481.6,1.37294185]
[1642947299896,1.4625452,2482.2,2481.6,1.37294185]
[1642947302956,0.161,2482.6,2481.6,1.37294185]
[1642947303857,0.161,2482.6,2482.0,1.3120258]
[1642947304057,1.46857607,2482.2,2482.0,1.3120258]
[1642947304457,1.46857607,2482.2,2481.2,4.61887155]
[1642947304758,1.46857607,2482.2,2481.2,0.161]
[1642947304959,0.0273322,2482.1,2481.2,0.161]
[1642947305158,1.46857607,2482.2,2481.1,3.9043]
[1642947305662,1.46857607,2482.2,2481.8,1.29913214]
[1642947305959,0.161,2482.6,2481.8,1.29913214]
[1642947306897,1.22543637,2482.5,2481.8,1.29913214]
[1642947307194,0.161,2482.4,2481.8,1.29913214]
[1642947308200,10.103,2482.7,2481.8,1.29913214]
[1642947309297,0.24812045,2482.2,2481.5,28.14952897]
[1642947309497,10.103,2482.7,2481.6,1.40205975]
[1642947309697,10.103,2482.7,2482.5,1.39772694]
[1642947309898,6.2363,2482.7,2482.1,0.48712797]
[1642947310155,10.1673,2482.7,2482.1,0.48712797]
[1642947310549,3.931,2482.7,2482.1,0.48712797]
[1642947310854,0.161,2483.0,2482.1,0.48712797]
[1642947311049,0.01294543,2483.4,2482.1,0.48712797]
[1642947311050,0.161,2483.3,2482.1,0.48712797]
[1642947311850,0.161,2483.3,2482.5,1.37401503]
[1642947311851,1.45376967,2482.8,2482.5,1.37401503]
[1642947312049,1.45376967,2482.8,2482.1,0.48712797]
[1642947312250,0.161,2482.7,2482.1,0.48712797]
[1642947312454,3.83,2482.7,2482.1,0.48712797]
[1642947313454,1.48435253,2482.6,2482.2,1.30740156]
[1642947313654,1.39500452,2482.2,2482.1,0.48712797]
[1642947313905,1.39500452,2482.2,2480.7,7.48]
[1642947313906,0.01943507,2482.1,2480.7,7.48]
[1642947314105,0.01274196,2481.6,2480.7,7.48]
[1642947314307,0.01274196,2481.6,2481.2,0.48712797]
[1642947314308,0.37326255,2481.5,2481.2,0.48712797]
[1642947314505,0.37326255,2481.5,2480.1,0.00142746]
[1642947314506,0.3621,2481.5,2480.1,0.00142746]
[1642947314702,0.3621,2481.5,2480.3,1.1236626]
[1642947314906,0.3121,2481.5,2480.3,1.1236626]
[1642947315911,1.10575305,2481.0,2479.9,0.05022]
[1642947316118,1.10575305,2481.0,2479.8,0.02]
[1642947316119,3.8707,2480.9,2479.8,0.02]
[1642947316312,3.8707,2480.9,2479.9,3.37911472]
[1642947316514,1.42719302,2480.2,2479.8,0.02]
[1642947316715,0.36269,2480.1,2479.8,0.02]
[1642947317012,0.01232705,2479.9,2479.6,0.0331927]
[1642947317215,1.2641939,2479.4,2479.3,0.02]
[1642947317411,1.2641939,2479.4,2479.2,0.02]
[1642947317412,1.17707396,2479.4,2479.2,0.02]
[1642947317653,0.1613,2479.3,2477.9,7.48]
[1642947317856,32.76753728,2477.9,2477.8,0.161625]
[1642947318054,32.76753728,2477.9,2477.8,0.061625]
[1642947318055,29.10741422,2477.9,2477.8,0.061625]
[1642947318253,29.10741422,2477.9,2477.7,0.911625]
[1642947318254,28.37829632,2477.9,2477.7,0.911625]
[1642947318453,28.37829632,2477.9,2477.8,1.5120638]
[1642947318655,28.37829632,2477.9,2477.7,0.911625]
[1642947318854,0.1613,2477.8,2477.7,0.911625]
[1642947319656,3.95,2477.7,2477.4,0.2169]
[1642947319857,1.32687134,2477.8,2477.4,0.1169]
[1642947319858,0.1613,2477.8,2477.4,0.1169]
[1642947320059,0.4036,2477.8,2477.4,0.1169]
[1642947320263,0.3536,2477.8,2477.4,0.1169]
[1642947320759,0.3536,2477.8,2477.4,0.0669]
[1642947321166,0.3536,2477.8,2476.7,0.02]
[1642947321167,1.16272897,2477.7,2476.7,0.39291387]